bitfinex-derivatives/quotes_BTCF0:USTF0_20250108
["timestamp","ask_amount","ask_price","bid_price","bid_amount"]
[1736356376477,0.3608,94069.0,94055.0,0.3608]
[1736356377007,0.3608,94069.0,94056.0,0.053178]
[1736356377284,0.3608,94069.0,94055.0,0.3608]
[1736356377483,0.3608,94069.0,94058.0,0.053177]
[1736356377984,0.053177,94057.0,94055.0,0.001]
[1736356378187,0.3608,94056.0,94055.0,0.001]
[1736356378379,0.3608,94056.0,94030.0,0.25085689]
[1736356378380,0.3608,94056.0,94051.0,0.053181]
[1736356378580,0.3608,94056.0,94055.0,0.001]
[1736356380097,0.3608,94056.0,94053.0,0.053179]
[1736356380691,0.3608,94056.0,94055.0,0.053179]
[1736356380886,0.3608,94075.0,94074.0,0.053168]
[1736356381280,0.3608,94075.0,94063.0,0.053174]
[1736356381489,0.3608,94086.0,94073.0,0.3608]
[1736356381684,0.3608,94086.0,94073.0,0.053168]
[1736356381990,0.3608,94077.0,94069.0,0.053171]
[1736356382190,0.3608,94077.0,94061.0,0.053175]
[1736356382382,0.3608,94077.0,94074.0,0.001]
[1736356382579,0.3608,94096.0,94074.0,0.001]
[1736356382886,0.3608,94096.0,94081.0,0.053164]
[1736356383390,0.413963,94082.0,94040.0,0.053187]
[1736356383692,0.3608,94061.0,94060.0,0.053176]
[1736356383991,0.3608,94084.0,94073.0,0.002]
[1736356384194,0.3608,94095.0,94081.0,0.053164]
[1736356384388,0.053151,94104.0,94087.0,0.05316]
[1736356384589,0.3608,94108.0,94080.0,0.3608]
[1736356384590,0.3608,94097.0,94080.0,0.3608]
[1736356384794,0.3608,94088.0,94080.0,0.3608]
[1736356385094,0.053157,94094.0,94081.0,0.053164]
[1736356385293,0.05315,94106.0,94080.0,0.3608]
[1736356385483,0.053151,94104.0,94090.0,0.053159]
[1736356385687,0.36770168,94109.0,94080.0,0.19144492]
[1736356385882,0.3608,94098.0,94080.0,0.19144492]
[1736356386083,0.3608,94098.0,94091.0,0.053158]
[1736356386296,0.413954,94098.0,94080.0,0.19144492]
[1736356386595,0.25085689,94090.0,94080.0,0.19144492]
[1736356386790,0.1186464,94097.0,94083.0,0.053163]
[1736356386982,0.005,94097.0,94083.0,0.053163]
[1736356387485,0.16291544,94093.0,94089.0,0.053159]
[1736356388084,0.16291544,94093.0,94072.0,0.3608]
[1736356388294,0.007,94097.0,94089.0,0.3608]
[1736356388488,0.3628,94098.0,94096.0,0.053155]
[1736356388996,0.3608,94098.0,94096.0,0.053155]
[1736356389696,0.053155,94096.0,94089.0,0.3608]
[1736356389898,0.3608,94090.0,94071.0,0.3608]
[1736356390096,0.053162,94084.0,94071.0,0.3608]
[1736356390488,0.61363116,94090.0,94071.0,0.3608]
[1736356390694,0.61363116,94090.0,94061.0,0.3608]
[1736356390695,0.3608,94075.0,94061.0,0.3608]
[1736356390900,0.3608,94075.0,94065.0,0.053173]
[1736356391301,0.3608,94075.0,94067.0,0.053172]
[1736356391498,0.3608,94075.0,94071.0,0.001]
[1736356391791,0.36756957,94090.0,94075.0,0.053167]
[1736356391792,0.053162,94084.0,94075.0,0.053167]
[1736356392000,0.3608,94090.0,94078.0,0.3608]
[1736356392201,0.053156,94096.0,94085.0,0.053161]
[1736356392390,0.00764801,94101.0,94078.0,0.3608]
[1736356392589,0.053159,94089.0,94078.0,0.053166]
[1736356392785,0.3608,94091.0,94072.0,0.2813]
[1736356392995,0.053164,94082.0,94072.0,0.2813]
[1736356393290,0.053165,94079.0,94072.0,0.2813]
[1736356393596,0.36854608,94091.0,94069.0,0.3608]
[1736356393802,0.053162,94085.0,94073.0,0.053168]
[1736356394186,0.053162,94085.0,94078.0,0.053165]
[1736356394797,0.05172678,94084.0,94060.0,0.25111115]
[1736356395002,0.05172678,94084.0,94072.0,0.001]
[1736356395294,0.3608,94077.0,94072.0,0.001]
[1736356395499,0.053168,94074.0,94072.0,0.001]
[1736356395702,0.053168,94074.0,94057.0,0.47676]
[1736356395889,0.3608,94077.0,94060.0,0.25111115]
[1736356396093,0.3608,94077.0,94076.0,0.053167]
[1736356396299,0.3608,94077.0,94068.0,0.053171]
[1736356396496,0.053166,94078.0,94061.0,0.2816]
[1736356396694,0.001,94074.0,94073.0,0.053168]
[1736356396896,0.001,94074.0,94073.0,0.05236513]
[1736356397303,0.05272931,94074.0,94073.0,0.05236513]
[1736356398295,0.05572931,94074.0,94073.0,0.05236513]
[1736356399506,0.3608,94095.0,94073.0,0.41316513]
[1736356399808,0.3608,94095.0,94073.0,0.3608]
[1736356399809,0.21614594,94091.0,94073.0,0.3608]
[1736356400106,0.053159,94090.0,94084.0,0.053162]
[1736356400607,0.053162,94084.0,94071.0,0.3608]
[1736356400793,0.21614594,94091.0,94071.0,0.3608]
[1736356400990,0.21614594,94091.0,94082.0,0.053163]
[1736356401190,0.12833342,94089.0,94082.0,0.053163]
[1736356401798,0.12833342,94089.0,94074.0,0.053167]
[1736356402001,0.053167,94076.0,94071.0,0.3608]
[1736356402193,0.053162,94085.0,94071.0,0.3608]
[1736356402394,0.053162,94085.0,94077.0,0.053166]
[1736356402791,0.3608,94086.0,94077.0,0.053166]
[1736356402997,0.3608,94086.0,93300.0,0.1]
[1736356402998,0.3608,94078.0,94061.0,0.3608]
[1736356403394,0.3608,94078.0,94057.0,0.47676]
[1736356403600,0.053173,94066.0,94061.0,0.053175]
[1736356403997,0.3608,94078.0,94065.0,0.053173]
[1736356404206,0.3608,94078.0,94061.0,0.002]
[1736356404598,0.1,94080.0,94072.0,0.053169]
[1736356404799,0.1,94080.0,94061.0,0.004]
[1736356405001,0.3608,94073.0,94061.0,0.004]
[1736356405307,0.3608,94062.0,94061.0,0.007]
[1736356405502,0.3608,94062.0,94035.0,0.47672]
[1736356405702,0.053185,94045.0,94035.0,0.47672]
[1736356405998,0.3608,94048.0,94037.0,0.053188]
[1736356405999,0.053186,94041.0,94037.0,0.053188]
[1736356406199,0.053186,94042.0,94037.0,0.053188]
[1736356406401,0.3608,94040.0,94037.0,0.053188]
[1736356406715,0.3608,94040.0,94035.0,0.47672]
[1736356406906,0.3608,94040.0,94038.0,0.053188]
[1736356407603,0.002,94045.0,94044.0,0.053185]
[1736356408001,0.18719435,94056.0,94044.0,0.053185]
[1736356408002,0.18719435,94056.0,94055.0,0.053179]
[1736356408596,0.18719435,94056.0,94047.0,0.053183]
[1736356408799,0.413981,94051.0,94043.0,0.053185]
[1736356409002,0.001,94042.0,94036.0,0.053189]
[1736356409204,0.053189,94036.0,94035.0,0.48272]
[1736356409610,0.3608,94041.0,94023.0,0.053196]
[1736356409816,0.053196,94025.0,94023.0,0.053196]
[1736356410699,0.053196,94025.0,94011.0,0.00774602]
[1736356410700,0.053197,94022.0,94016.0,0.0532]
[1736356410917,0.3608,94017.0,94008.0,0.4768]
[1736356411410,0.053196,94024.0,94023.0,0.004]
[1736356412605,0.053196,94024.0,94023.0,0.008]
[1736356412806,0.053196,94024.0,94023.0,0.004]
[1736356413000,0.3608,94030.0,94015.0,0.053201]
[1736356413218,0.054196,94024.0,94023.0,0.004]
[1736356413718,0.054196,94024.0,94023.0,0.008]
[1736356413906,0.054196,94024.0,94000.0,1.1]
[1736356414109,0.52388639,94010.0,94000.0,1.1]
[1736356414505,0.053208,94004.0,94000.0,1.1]
[1736356414817,0.053208,94004.0,94002.0,0.053208]
[1736356415116,0.3608,94010.0,94006.0,0.053206]
[1736356415316,0.3608,94010.0,94008.0,0.053205]
[1736356415913,0.414004,94010.0,94000.0,1.1]
[1736356416120,0.3608,94010.0,94008.0,0.053205]
[1736356416807,0.3608,94018.0,94017.0,0.0532]
[1736356417008,0.3608,94018.0,94008.0,0.053205]
[1736356417009,0.3608,94018.0,94012.0,0.053202]
[1736356417210,0.11270489,94009.0,94000.0,1.1]
[1736356417408,0.3608,94018.0,94000.0,1.1]
[1736356417409,0.16308639,94010.0,94000.0,1.1]
[1736356417614,0.3608,94001.0,94000.0,1.1]
[1736356419212,0.3608,94009.0,94000.0,1.1]
[1736356419417,0.3608,94009.0,94008.0,0.053205]
[1736356420110,0.053207,94006.0,94000.0,1.103]
[1736356420313,0.00822382,94023.0,94000.0,1.103]
[1736356420519,0.001,94009.0,94008.0,0.053205]
[1736356420814,0.3608,94030.0,94020.0,0.053198]
[1736356421019,0.053198,94022.0,94020.0,0.053198]
[1736356422718,0.3618,94021.0,94020.0,0.053198]
[1736356423120,0.3648,94021.0,94020.0,0.053198]
[1736356423711,0.00164,94044.0,94018.0,0.3608]
[1736356424026,0.3608,94045.0,94044.0,0.053185]
[1736356424517,0.12434943,94048.0,94044.0,0.3608]
[1736356424723,0.12434943,94048.0,94047.0,0.053183]
[1736356425432,0.18719435,94065.0,94064.0,0.053173]
[1736356425624,0.1,94080.0,94065.0,0.053173]
[1736356425920,0.1,94080.0,94079.0,0.053165]
[1736356427118,0.003,94080.0,94079.0,0.053165]
[1736356427330,0.01,94080.0,94079.0,0.054165]
[1736356428318,0.01,94080.0,94079.0,0.001]
[1736356428517,0.01,94080.0,94079.0,0.054165]
[1736356428809,0.007,94080.0,94079.0,0.414965]
[1736356429010,0.413956,94096.0,94088.0,0.05316]
[1736356429217,0.3608,94096.0,94086.0,0.16308639]
[1736356429422,0.3608,94096.0,94088.0,0.3608]
[1736356429819,0.3608,94096.0,94095.0,0.053156]
[1736356430321,0.3638,94096.0,94095.0,0.053156]
[1736356430926,0.3638,94096.0,94086.0,0.25099731]
[1736356430927,0.053156,94095.0,94086.0,0.25099731]
[1736356431118,0.053156,94095.0,94090.0,0.053158]
[1736356431314,0.3638,94096.0,94094.0,0.053156]
[1736356432724,0.3658,94096.0,94094.0,0.053156]
[1736356432925,0.3628,94096.0,94094.0,0.053156]
[1736356433225,0.3698,94096.0,94094.0,0.053156]
[1736356433526,0.3678,94096.0,94094.0,0.053156]
[1736356433729,0.3688,94096.0,94094.0,0.053156]
[1736356434836,0.3688,94096.0,94081.0,0.053164]
[1736356435122,0.053156,94095.0,94080.0,0.25099731]
[1736356435328,0.3608,94095.0,94093.0,0.053157]
[1736356435714,0.053157,94094.0,94093.0,0.053157]
[1736356435919,0.3608,94095.0,94070.0,0.25099731]
[1736356436123,0.3608,94086.0,94070.0,0.25099731]
[1736356436329,0.3608,94086.0,94069.0,0.3608]
[1736356436515,0.053164,94081.0,94080.0,0.001]
[1736356437017,0.3608,94086.0,94078.0,0.053165]
[1736356437218,0.3608,94086.0,94070.0,0.003]
[1736356437623,0.053162,94084.0,94071.0,0.053169]
[1736356437928,0.3608,94086.0,94080.0,0.002]
[1736356438223,0.3608,94086.0,94085.0,0.053162]
[1736356438423,0.3608,94092.0,94091.0,0.053158]
[1736356438615,0.15479405,94095.0,94086.0,0.053161]
[1736356438616,0.3608,94094.0,94086.0,0.053161]
[1736356438821,0.3608,94094.0,94092.0,0.053157]
[1736356439230,0.05316,94088.0,94086.0,0.053161]
[1736356439930,0.3608,94094.0,94071.0,0.3138]
[1736356440117,0.3658,94094.0,94071.0,0.3138]
[1736356440621,0.053161,94087.0,94085.0,0.053161]
[1736356440821,0.053163,94082.0,94073.0,0.053168]
[1736356441021,0.053166,94078.0,94071.0,0.002]
[1736356441233,0.053166,94078.0,94076.0,0.053166]
[1736356442225,0.3608,94085.0,94068.0,0.4768]
[1736356442418,0.05317,94071.0,94070.0,0.05317]
[1736356442623,0.053171,94069.0,94068.0,0.4768]
[1736356443223,0.3608,94076.0,94068.0,0.4768]
[1736356443425,0.00824446,94089.0,94068.0,0.4768]
[1736356443637,0.053166,94078.0,94076.0,0.001]
[1736356444322,0.3608,94084.0,94068.0,0.003]
[1736356444630,0.413971,94069.0,94068.0,0.005]
[1736356444929,0.413971,94069.0,94042.0,0.00839476]
[1736356444930,0.3608,94069.0,94042.0,0.00839476]
[1736356445130,0.053186,94042.0,94028.0,0.3608]
[1736356445323,0.053194,94030.0,94029.0,0.053193]
[1736356445735,0.053192,94033.0,94032.0,0.053191]
[1736356445939,0.36924349,94042.0,94026.0,0.30599402]
[1736356446231,0.36924349,94042.0,94017.0,0.3608]
[1736356446232,0.3608,94033.0,94017.0,0.3608]
[1736356446418,0.3608,94033.0,94016.0,0.47676]
[1736356446419,0.053199,94018.0,94016.0,0.47676]
[1736356446619,0.053203,94012.0,94011.0,0.25280002]
[1736356446832,0.414003,94012.0,94011.0,0.25280002]
[1736356447729,0.053204,94010.0,94007.0,0.053205]
[1736356447923,0.053205,94009.0,94007.0,0.053205]
[1736356448831,0.3618,94012.0,94000.0,1.1]
[1736356449135,0.053209,94002.0,94000.0,1.1]
[1736356450533,0.054209,94002.0,94000.0,1.1]
[1736356450934,0.054209,94002.0,94000.0,1.104]
[1736356451132,0.001,94002.0,94000.0,0.231125]
[1736356451436,0.001,94002.0,93988.0,0.0176]
[1736356451437,0.053211,93997.0,93964.0,0.3608]
[1736356451638,0.3608,93979.0,93964.0,0.3608]
[1736356451943,0.3608,93979.0,93960.0,0.16317179]
[1736356451944,0.3608,93979.0,93962.0,0.3608]
[1736356452234,0.3608,93987.0,93978.0,0.3608]
[1736356452431,0.3608,93987.0,93983.0,0.053219]
[1736356452630,0.3608,93987.0,93986.0,0.053218]
[1736356452834,0.3608,93999.0,93970.0,0.52397179]
[1736356453033,0.41401,93999.0,93979.0,0.3608]
[1736356453228,0.52397179,93990.0,93978.0,0.053222]
[1736356453425,0.3608,93981.0,93964.0,0.005]
[1736356453633,0.16317179,93980.0,93964.0,0.005]
[1736356453847,0.3608,93973.0,93964.0,0.005]
[1736356454341,0.3608,93973.0,93964.0,0.05323]
[1736356454636,0.36054141,93973.0,93963.0,0.05323]
[1736356454843,0.36054141,93973.0,93970.0,0.053226]
[1736356455039,0.36054141,93973.0,93960.0,0.3067]
[1736356455226,0.36054141,93973.0,93970.0,0.053226]
[1736356455227,0.36154141,93973.0,93970.0,0.053226]
[1736356455426,0.36154141,93973.0,93964.0,0.002]
[1736356455742,0.36154141,93973.0,93965.0,0.053229]
[1736356455937,0.36154141,93973.0,93964.0,0.002]
[1736356456145,0.3608,93981.0,93964.0,0.002]
[1736356456146,0.053217,93988.0,93967.0,0.3608]
[1736356456342,0.05322,93983.0,93971.0,0.053226]
[1736356456640,0.053225,93973.0,93967.0,0.3608]
[1736356456842,0.054225,93973.0,93970.0,0.005]
[1736356457044,0.053226,93972.0,93970.0,0.005]
[1736356457635,0.053227,93970.0,93967.0,0.3608]
[1736356457833,0.001,93973.0,93967.0,0.3608]
[1736356458034,0.001,93973.0,93965.0,0.625]
[1736356458239,0.053226,93971.0,93965.0,0.625]
[1736356458440,0.053226,93971.0,93970.0,0.005]
[1736356458744,0.001,93972.0,93970.0,0.058226]
[1736356459045,0.053226,93971.0,93970.0,0.005]
[1736356459940,0.053226,93971.0,93920.0,0.21642679]
[1736356459941,0.11796217,93971.0,93930.0,0.16317179]
[1736356460137,0.05324,93947.0,93930.0,0.00868776]
[1736356460338,0.3608,93961.0,93946.0,0.3608]
[1736356460538,0.053234,93957.0,93950.0,0.16317179]
[1736356460832,0.3608,93961.0,93950.0,0.16317179]
[1736356461035,0.053237,93953.0,93948.0,0.053239]
[1736356461237,0.053233,93959.0,93946.0,0.3608]
[1736356461439,0.002,93971.0,93960.0,0.053232]
[1736356461643,0.3608,93972.0,93970.0,0.053227]
[1736356462034,0.3608,93990.0,93978.0,0.053222]
[1736356462240,0.3608,93982.0,93965.0,0.3608]
[1736356462441,0.05323,93964.0,93963.0,0.47716]
[1736356463142,0.05323,93964.0,93950.0,0.16817179]
[1736356463143,0.3608,93965.0,93950.0,0.005]
[1736356463449,0.001,93953.0,93948.0,0.055239]
[1736356463747,0.001,93953.0,93949.0,0.053238]
[1736356463943,0.001,93964.0,93943.0,0.52397179]
[1736356464246,0.001,93964.0,93944.0,0.3608]
[1736356464442,0.3608,93955.0,93941.0,0.053243]
[1736356464645,0.3608,93955.0,93944.0,0.3608]
[1736356464945,0.3618,93965.0,93935.0,0.838]
[1736356464946,0.053238,93950.0,93948.0,0.002]
[1736356465747,0.001,93953.0,93948.0,0.002]
[1736356466348,0.053239,93949.0,93935.0,0.891246]
[1736356466545,0.053239,93949.0,93944.0,0.002]
[1736356466845,0.053241,93945.0,93944.0,0.002]
[1736356467046,0.3608,93948.0,93924.0,0.414052]
[1736356467251,0.053244,93939.0,93924.0,0.3608]
[1736356467543,0.3608,93940.0,93901.0,0.6436]
[1736356467544,0.3608,93927.0,93901.0,0.6436]
[1736356467749,0.053254,93922.0,93904.0,0.053264]
[1736356468048,0.053254,93922.0,93908.0,0.3608]
[1736356468743,0.3608,93927.0,93900.0,0.27427179]
[1736356468744,0.3608,93919.0,93900.0,0.1111]
[1736356468935,0.053258,93916.0,93900.0,0.1111]
[1736356469140,0.36964498,93927.0,93909.0,0.3608]
[1736356469345,0.36964498,93927.0,93900.0,0.1111]
[1736356469346,0.053259,93914.0,93900.0,0.1111]
[1736356470643,0.054259,93914.0,93900.0,0.27627179]
[1736356470845,0.002,93914.0,93907.0,0.3608]
[1736356471143,0.05326,93912.0,93907.0,0.3608]
[1736356471539,0.053261,93910.0,93907.0,0.3608]
[1736356472848,0.002,93914.0,93907.0,0.3608]
[1736356473238,0.001,93912.0,93910.0,0.053261]
[1736356473453,0.053251,93928.0,93910.0,0.04880473]
[1736356473648,0.001,93914.0,93913.0,0.053259]
[1736356473849,0.3608,93969.0,93913.0,0.3608]
[1736356474149,0.3608,93969.0,93956.0,0.3608]
[1736356474353,0.3608,93969.0,93934.0,0.053246]
[1736356474354,0.3608,93972.0,93943.0,0.4774]
[1736356474540,0.053227,93970.0,93950.0,0.414038]
[1736356474737,0.053232,93961.0,93951.0,0.3608]
[1736356475145,0.053228,93967.0,93951.0,0.3608]
[1736356475353,0.001,93969.0,93957.0,0.16317179]
[1736356475649,0.36975475,93972.0,93957.0,0.16317179]
[1736356475650,0.00168,93987.0,93968.0,0.053228]
[1736356475843,0.3608,93990.0,93973.0,0.053225]
[1736356476046,0.3608,93990.0,93977.0,0.16317179]
[1736356476243,0.053218,93986.0,93977.0,0.16317179]
[1736356476443,0.053213,93995.0,93977.0,0.16317179]
[1736356476647,0.053213,93995.0,93981.0,0.05322]
[1736356476850,0.053213,93995.0,93983.0,0.3608]
[1736356477353,0.053213,93995.0,93984.0,0.053218]
[1736356477739,0.054213,93995.0,93994.0,0.3608]
[1736356477946,0.001,93995.0,93994.0,0.3608]
[1736356478257,0.001,93995.0,93994.0,0.414013]
[1736356479950,0.3608,94009.0,93994.0,0.3608]
[1736356480253,0.3608,94009.0,94008.0,0.053205]
[1736356480449,0.3608,94028.0,94005.0,0.3608]
[1736356480651,0.00925876,94031.0,94027.0,0.3608]
[1736356480848,0.3608,94039.0,94034.0,0.05319]
[1736356481055,0.3608,94039.0,94029.0,0.15387179]
[1736356481258,0.3608,94039.0,94038.0,0.053188]
[1736356481446,0.053192,94032.0,94019.0,0.053199]
[1736356481644,0.053195,94026.0,94016.0,0.3608]
[1736356483056,0.3608,94030.0,94016.0,0.3608]
[1736356483364,0.3608,94030.0,94005.0,0.47724]
[1736356483365,0.3608,94030.0,94015.0,0.053201]
[1736356483551,0.053196,94024.0,94011.0,0.053203]
[1736356483754,0.3608,94030.0,94019.0,0.003]
[1736356483961,0.001,94032.0,94019.0,0.003]
[1736356484163,0.1670391,94023.0,94018.0,0.3608]
[1736356484457,0.1670391,94023.0,94016.0,0.003]
[1736356484659,0.3608,94028.0,94016.0,0.003]
[1736356484660,0.0532,94017.0,94016.0,0.003]
[1736356484864,0.3608,94018.0,93988.0,0.053216]
[1736356485060,0.3608,93994.0,93980.0,0.3608]
[1736356485265,0.3608,93994.0,93989.0,0.053216]
[1736356485455,0.3608,94004.0,93999.0,0.05321]
[1736356485656,0.3608,94004.0,93990.0,0.3608]
[1736356485657,0.3608,94004.0,94003.0,0.053208]
[1736356485964,0.3608,94015.0,94013.0,0.053202]
[1736356486661,0.053204,94011.0,93995.0,0.530372]
[1736356486867,0.053204,94011.0,94000.0,0.05321]
[1736356487166,0.3608,94015.0,94014.0,0.053202]
[1736356487375,0.3618,94015.0,94014.0,0.053202]
[1736356487665,0.3618,94015.0,94013.0,0.001]
[1736356487861,0.3618,94015.0,94013.0,0.002]
[1736356488163,0.053202,94014.0,94013.0,0.002]
[1736356488355,0.053202,94014.0,94013.0,0.001]
[1736356488562,0.053202,94014.0,94003.0,0.053208]
[1736356488758,0.053202,94014.0,94005.0,0.053207]
[1736356488968,0.3608,94010.0,94006.0,0.053206]
[1736356489266,0.15461722,94017.0,93997.0,0.053211]
[1736356489267,0.3608,94011.0,93997.0,0.053211]
[1736356489466,0.51541722,94011.0,94001.0,0.053209]
[1736356489858,0.51541722,94011.0,94005.0,0.053207]
[1736356490162,0.51541722,94011.0,94003.0,0.053207]
[1736356490469,0.15461722,94008.0,94006.0,0.053206]
[1736356490864,0.15461722,94008.0,93982.0,0.3608]
[1736356490865,0.15461722,94008.0,94001.0,0.001]
[1736356491170,0.414008,94002.0,94001.0,0.001]
[1736356491358,0.414008,94002.0,93980.0,0.053221]
[1736356491559,0.053212,93996.0,93980.0,0.053221]
[1736356491763,0.3608,94000.0,93971.0,0.3213]
[1736356491966,0.053227,93969.0,93964.0,0.05323]
[1736356492162,0.3608,93966.0,93964.0,0.05323]
[1736356492465,0.3608,93988.0,93965.0,0.3608]
[1736356492667,0.05322,93983.0,93974.0,0.3608]
[1736356492872,0.05322,93981.0,93974.0,0.414024]
[1736356493072,0.05322,93981.0,93974.0,0.3608]
[1736356493267,0.05322,93981.0,93975.0,0.053223]
[1736356493468,0.053221,93980.0,93974.0,0.3608]
[1736356493672,0.6586,93999.0,93974.0,0.3608]
[1736356493867,0.053218,93985.0,93984.0,0.3608]
[1736356494167,0.053224,93975.0,93974.0,0.3618]
[1736356494575,0.3608,93991.0,93963.0,0.3608]
[1736356494576,0.05323,93965.0,93963.0,0.3608]
[1736356495760,0.05323,93965.0,93963.0,0.003]
[1736356495977,0.05323,93965.0,93963.0,0.3638]
[1736356496172,0.05323,93965.0,93963.0,1e-06]
[1736356496468,0.11966064,93964.0,93963.0,1e-06]
[1736356496669,0.053242,93942.0,93941.0,0.3608]
[1736356496872,0.053248,93932.0,93931.0,0.3608]
[1736356497665,0.053243,93941.0,93920.0,0.3608]
[1736356497965,0.053253,93924.0,93920.0,0.3608]
[1736356498570,0.053254,93922.0,93920.0,0.3608]
[1736356498765,0.053249,93932.0,93921.0,0.053254]
[1736356498974,0.053249,93932.0,93931.0,0.3608]
[1736356500064,0.001,93932.0,93931.0,0.3608]
[1736356500472,0.05323,93964.0,93951.0,0.053237]
[1736356500670,0.05323,93964.0,93963.0,0.3608]
[1736356500973,0.053228,93968.0,93953.0,0.3608]
[1736356501269,0.00168,93979.0,93964.0,0.3608]
[1736356501473,0.053229,93967.0,93964.0,0.3608]
[1736356501671,0.053229,93965.0,93964.0,0.3608]
[1736356502067,1.01637934,93987.0,93964.0,0.3608]
[1736356502281,0.12358358,94011.0,93985.0,0.3608]
[1736356502282,0.053218,93986.0,93985.0,0.3608]
[1736356503276,0.053213,93994.0,93987.0,0.053217]
[1736356503582,0.3608,93993.0,93971.0,0.3608]
[1736356503779,0.30202231,93990.0,93975.0,0.3608]
[1736356503973,0.30202231,93990.0,93959.0,0.053233]
[1736356504275,0.053243,93942.0,93938.0,0.3608]
[1736356504477,0.3608,93958.0,93938.0,0.3608]
[1736356504783,0.053244,93940.0,93938.0,0.3608]
[1736356505174,0.053238,93950.0,93945.0,0.053241]
[1736356505369,0.0090452,93965.0,93952.0,0.053236]
[1736356505582,0.053234,93958.0,93957.0,0.3608]
[1736356506373,0.001,93990.0,93957.0,0.3608]
[1736356506673,0.053218,93986.0,93985.0,0.3608]
[1736356507172,0.053215,93991.0,93985.0,0.3608]
[1736356507374,0.00902694,93999.0,93985.0,0.3608]
[1736356507675,0.053217,93987.0,93985.0,0.3608]
[1736356507873,0.053224,93975.0,93974.0,0.3608]
[1736356508475,0.053229,93965.0,93964.0,0.3608]
[1736356510182,0.3608,93983.0,93964.0,0.3608]
[1736356510388,0.053229,93966.0,93964.0,0.3608]
[1736356510774,0.053225,93973.0,93966.0,0.053229]
[1736356510983,0.053225,93973.0,93972.0,0.3608]
[1736356511183,0.053229,93966.0,93964.0,0.3638]
[1736356511483,0.053229,93966.0,93964.0,0.003]
[1736356511674,0.054229,93966.0,93964.0,0.003]
[1736356511873,0.054229,93966.0,93964.0,0.002]
[1736356512982,0.054229,93966.0,93964.0,0.003]
[1736356513789,0.053229,93966.0,93964.0,0.001]
[1736356513977,0.053225,93973.0,93964.0,0.003]
[1736356514287,0.1,93980.0,93972.0,0.3608]
[1736356514477,0.053225,93973.0,93972.0,0.3608]
[1736356514881,0.1,93980.0,93972.0,0.3608]
[1736356515172,0.053225,93974.0,93972.0,0.3608]
[1736356515786,0.053225,93974.0,93972.0,0.3618]
[1736356515985,0.053225,93974.0,93972.0,0.001]
[1736356516187,0.1,93980.0,93954.0,0.3608]
[1736356516188,0.053235,93955.0,93954.0,0.3608]
[1736356516376,0.053238,93951.0,93947.0,0.3608]
[1736356516577,0.3608,93965.0,93947.0,0.3608]
[1736356516873,0.053239,93948.0,93947.0,0.3608]
[1736356517077,0.053244,93939.0,93938.0,0.19026153]
[1736356517879,0.053244,93939.0,93935.0,0.3608]
[1736356518078,0.053244,93939.0,93937.0,0.053245]
[1736356518380,0.3618,93965.0,93935.0,0.3608]
[1736356518591,0.053246,93936.0,93935.0,0.3608]
[1736356519291,0.002,93939.0,93936.0,0.053246]
[1736356519788,0.001,93939.0,93935.0,0.3618]
[1736356520093,0.053246,93937.0,93935.0,0.001]
[1736356520290,0.053257,93916.0,93915.0,0.3608]
[1736356520885,0.053258,93914.0,93913.0,0.55106153]
[1736356521483,0.053258,93914.0,93913.0,0.19026153]
[1736356521685,0.16609251,93914.0,93913.0,0.19026153]
[1736356521884,0.053258,93914.0,93913.0,0.19026153]
[1736356522086,0.353258,93914.0,93913.0,0.17029956]
[1736356522387,0.12272873,93914.0,93900.0,0.1111]
[1736356522591,0.053266,93901.0,93900.0,0.1111]
[1736356522979,0.053266,93901.0,93900.0,0.12919925]
[1736356523180,0.053266,93901.0,93900.0,0.48999925]
[1736356524393,0.054266,93901.0,93900.0,0.49099925]
[1736356524595,0.001,93901.0,93900.0,0.49099925]
[1736356524796,0.002,93901.0,93900.0,0.49099925]
[1736356525410,0.053258,93915.0,93901.0,0.053266]
[1736356525717,0.12396345,93918.0,93914.0,0.3608]
[1736356525918,0.15495431,93924.0,93917.0,0.01809925]
[1736356526106,0.15495431,93924.0,93923.0,0.3608]
[1736356526414,0.053246,93936.0,93923.0,0.3608]
[1736356526716,0.18594518,93946.0,93935.0,0.3608]
[1736356527017,0.18594518,93946.0,93945.0,0.37889925]
[1736356527209,0.053236,93954.0,93945.0,0.37889925]
[1736356527410,0.053236,93954.0,93953.0,0.3608]
[1736356527606,0.21693604,93960.0,93953.0,0.37889925]
[1736356527803,0.18573896,93967.0,93953.0,0.37889925]
[1736356528002,0.053231,93962.0,93961.0,0.3608]
[1736356528207,0.03513175,93962.0,93961.0,0.3608]
[1736356529111,0.18573896,93967.0,93945.0,0.002]
[1736356529318,0.05324,93946.0,93945.0,0.002]
[1736356530207,0.06252874,93963.0,93944.0,0.3608]
[1736356530407,0.053233,93959.0,93958.0,0.3608]
[1736356531017,0.00963217,93970.0,93958.0,0.3608]
[1736356531314,0.1,93980.0,93968.0,0.3608]
[1736356531514,0.1,93980.0,93979.0,0.3608]
[1736356533016,0.1,94000.0,93979.0,0.6608]
[1736356533216,0.4608,94040.0,94004.0,0.053207]
[1736356533217,0.053197,94022.0,94004.0,0.053207]
[1736356533525,0.053191,94033.0,94017.0,0.3608]
[1736356533816,0.053189,94038.0,94017.0,0.3608]
[1736356534020,0.053189,94038.0,94021.0,0.053198]
[1736356534222,0.1,94040.0,94037.0,0.3608]